[Event "Late-Titled-Tuesday-Blitz-April-30-2024"]
[Site "Chess.com"]
[Date "2024.04.30"]
[Round "2"]
[White "MiguelBestard1981"]
[Black "albayo"]
[Result "1-0"]
[WhiteElo "2144"]
[BlackElo "2439"]
[TimeControl "180+1"]
[EndTime "14:18:50 PDT"]
[Termination "MiguelBestard1981 won on time"]

1. e4 {[%clk 0:03:00]} 1... c5 {[%clk 0:03:00]} 2. Nf3 {[%clk 0:02:59.8]} 2...
g6 {[%clk 0:03:00.6]} 3. h4 {[%clk 0:02:55.8]} 3... h5 {[%clk 0:03:01.2]} 4. d3
{[%clk 0:02:49.6]} 4... d6 {[%clk 0:03:01.4]} 5. Be2 {[%clk 0:02:49.6]} 5... Bg7
{[%clk 0:03:01.4]} 6. Ng5 {[%clk 0:02:47.4]} 6... Nc6 {[%clk 0:03:01.8]} 7. g4
{[%clk 0:02:46.6]} 7... hxg4 {[%clk 0:02:58.3]} 8. Bxg4 {[%clk 0:02:47.5]} 8...
Bxg4 {[%clk 0:02:58.2]} 9. Qxg4 {[%clk 0:02:48.4]} 9... Nf6 {[%clk 0:02:58.9]}
10. Qg2 {[%clk 0:02:41.2]} 10... Qd7 {[%clk 0:02:54.1]} 11. c3 {[%clk
0:02:40.8]} 11... b5 {[%clk 0:02:52.1]} 12. Na3 {[%clk 0:02:25.2]} 12... Ne5
{[%clk 0:02:50.4]} 13. Rh3 {[%clk 0:02:18.2]} 13... c4 {[%clk 0:02:27.1]} 14. d4
{[%clk 0:02:17.4]} 14... Nd3+ {[%clk 0:02:05.2]} 15. Ke2 {[%clk 0:02:17.1]}
15... Nxc1+ {[%clk 0:01:59.7]} 16. Rxc1 {[%clk 0:02:16.5]} 16... a6 {[%clk
0:01:57.8]} 17. Rg1 {[%clk 0:02:16.4]} 17... Nh5 {[%clk 0:01:38.6]} 18. Rf3
{[%clk 0:01:53.4]} 18... e5 {[%clk 0:01:30]} 19. Nxf7 {[%clk 0:01:45.1]} 19...
Rf8 {[%clk 0:00:38.2]} 20. Qxg6 {[%clk 0:01:33.2]} 20... Rxf7 {[%clk 0:00:19.1]}
21. Qxh5 {[%clk 0:01:32.3]} 21... Kf8 {[%clk 0:00:19.3]} 22. Rxf7+ {[%clk
0:01:11.7]} 22... Qxf7 {[%clk 0:00:20.2]} 23. Qxf7+ {[%clk 0:01:03.4]} 23...
Kxf7 {[%clk 0:00:21.1]} 24. d5 {[%clk 0:01:01.3]} 24... Rh8 {[%clk 0:00:21.1]}
25. Rh1 {[%clk 0:01:00.5]} 25... Rh5 {[%clk 0:00:19.5]} 26. Kf3 {[%clk
0:00:58.9]} 26... Bf6 {[%clk 0:00:19.7]} 27. Kg4 {[%clk 0:00:59.3]} 27... Rh8
{[%clk 0:00:20.1]} 28. h5 {[%clk 0:00:59.4]} 28... Kg7 {[%clk 0:00:20.3]} 29.
Kf5 {[%clk 0:00:58.3]} 29... Rf8 {[%clk 0:00:18.9]} 30. Ke6 {[%clk 0:00:57.9]}
30... Rd8 {[%clk 0:00:17.4]} 31. h6+ {[%clk 0:00:56.6]} 31... Kg6 {[%clk
0:00:16.8]} 32. h7 {[%clk 0:00:54]} 32... Rh8 {[%clk 0:00:12.2]} 33. Kxd6 {[%clk
0:00:52.4]} 33... Kf7 {[%clk 0:00:12.8]} 34. Kc6 {[%clk 0:00:51.3]} 34... Ke7
{[%clk 0:00:13.1]} 35. Kb7 {[%clk 0:00:51.1]} 35... Kd6 {[%clk 0:00:13.3]} 36.
Kxa6 {[%clk 0:00:50.8]} 36... Kc5 {[%clk 0:00:13.8]} 37. Nxb5 {[%clk 0:00:50.3]}
37... Ra8+ {[%clk 0:00:13.4]} 38. Na7 {[%clk 0:00:50]} 38... Rh8 {[%clk
0:00:13.8]} 39. b4+ {[%clk 0:00:48.1]} 39... cxb3 {[%clk 0:00:13.8]} 40. axb3
{[%clk 0:00:48.5]} 40... Bd8 {[%clk 0:00:14.6]} 41. b4+ {[%clk 0:00:48.4]} 41...
Kc4 {[%clk 0:00:15.1]} 42. b5 {[%clk 0:00:47.2]} 42... Kc5 {[%clk 0:00:15.3]}
43. Nc8 {[%clk 0:00:40.7]} 43... Bf6 {[%clk 0:00:11.8]} 44. b6 {[%clk
0:00:34.4]} 44... Rxc8 {[%clk 0:00:11.4]} 45. b7 {[%clk 0:00:34.4]} 45... Rb8
{[%clk 0:00:11.6]} 46. Ka7 {[%clk 0:00:33.7]} 46... Rd8 {[%clk 0:00:03.2]} 47.
b8=Q {[%clk 0:00:32.6]} 47... Rd7+ {[%clk 0:00:04.1]} 48. Qb7 {[%clk 0:00:32.5]}
48... Bd8 {[%clk 0:00:05]} 49. Qxd7 {[%clk 0:00:31.9]} 49... Bb6+ {[%clk
0:00:05.9]} 50. Kb7 {[%clk 0:00:31.6]} 1-0

[Event "Late-Titled-Tuesday-Blitz-April-30-2024"]
[Site "Chess.com"]
[Date "2024.04.30"]
[Round "2"]
[White "maximnovik"]
[Black "AlainBruxelles"]
[Result "1-0"]
[WhiteElo "2504"]
[BlackElo "2243"]
[TimeControl "180+1"]
[EndTime "14:18:51 PDT"]
[Termination "maximnovik won by resignation"]

1. e4 {[%clk 0:03:00]} 1... c6 {[%clk 0:02:59.6]} 2. d4 {[%clk 0:02:59.4]} 2...
d5 {[%clk 0:02:59.6]} 3. Nc3 {[%clk 0:02:58.7]} 3... dxe4 {[%clk 0:02:59.2]} 4.
Nxe4 {[%clk 0:02:59.1]} 4... Nd7 {[%clk 0:02:58.9]} 5. Nf3 {[%clk 0:02:58.7]}
5... Ngf6 {[%clk 0:02:56.7]} 6. Ng3 {[%clk 0:02:59.2]} 6... e6 {[%clk
0:02:55.7]} 7. Bd3 {[%clk 0:02:59.7]} 7... Bd6 {[%clk 0:02:55.3]} 8. O-O {[%clk
0:02:59.7]} 8... O-O {[%clk 0:02:54.9]} 9. Re1 {[%clk 0:03:00.2]} 9... Qc7
{[%clk 0:02:55]} 10. b3 {[%clk 0:02:58.8]} 10... c5 {[%clk 0:02:47.5]} 11. Bb2
{[%clk 0:02:56.5]} 11... b6 {[%clk 0:02:45.1]} 12. Qe2 {[%clk 0:02:54.7]} 12...
Bb7 {[%clk 0:02:44]} 13. c4 {[%clk 0:02:52]} 13... a6 {[%clk 0:02:27.8]} 14.
Rad1 {[%clk 0:02:46.8]} 14... Rad8 {[%clk 0:02:25.5]} 15. Bb1 {[%clk 0:02:46.3]}
15... cxd4 {[%clk 0:02:12.6]} 16. Nxd4 {[%clk 0:02:38]} 16... Bc5 {[%clk
0:02:09.5]} 17. Nh5 {[%clk 0:02:13.5]} 17... Nxh5 {[%clk 0:01:51.3]} 18. Qxh5
{[%clk 0:02:07.4]} 18... Nf6 {[%clk 0:01:48.1]} 19. Qh4 {[%clk 0:02:06.1]} 19...
h6 {[%clk 0:01:43]} 20. Nf3 {[%clk 0:01:57.3]} 20... Rxd1 {[%clk 0:01:35]} 21.
Rxd1 {[%clk 0:01:57.1]} 21... Rd8 {[%clk 0:01:34.9]} 22. Re1 {[%clk 0:01:03.3]}
22... Ne8 {[%clk 0:01:13.6]} 23. Bc3 {[%clk 0:00:52.5]} 23... Bxf3 {[%clk
0:01:09.3]} 24. gxf3 {[%clk 0:00:52.1]} 24... Qe7 {[%clk 0:01:03.7]} 25. Qxe7
{[%clk 0:00:45.5]} 25... Bxe7 {[%clk 0:01:02.2]} 26. f4 {[%clk 0:00:45.6]} 26...
Bf6 {[%clk 0:00:58.3]} 27. Be5 {[%clk 0:00:33.3]} 27... Rd2 {[%clk 0:00:53]} 28.
Kg2 {[%clk 0:00:27.9]} 28... Bh4 {[%clk 0:00:49.9]} 29. Rf1 {[%clk 0:00:26.5]}
29... f6 {[%clk 0:00:37.6]} 30. Bc3 {[%clk 0:00:26.4]} 30... Rd7 {[%clk
0:00:30.3]} 31. Kh3 {[%clk 0:00:25.7]} 31... g5 {[%clk 0:00:30.6]} 32. f5 {[%clk
0:00:26]} 32... e5 {[%clk 0:00:26.1]} 33. Be4 {[%clk 0:00:25.7]} 33... Nc7
{[%clk 0:00:23.3]} 34. f3 {[%clk 0:00:24.3]} 34... h5 {[%clk 0:00:19.2]} 35. Kg2
{[%clk 0:00:24.3]} 35... Kf7 {[%clk 0:00:17.5]} 36. Bc2 {[%clk 0:00:23.9]} 36...
g4 {[%clk 0:00:12.6]} 37. Rd1 {[%clk 0:00:20.8]} 37... Rxd1 {[%clk 0:00:10.4]}
38. Bxd1 {[%clk 0:00:20.9]} 38... gxf3+ {[%clk 0:00:04]} 39. Bxf3 {[%clk
0:00:21]} 39... Bg5 {[%clk 0:00:02.7]} 40. Bxh5+ {[%clk 0:00:21.2]} 40... Ke7
{[%clk 0:00:02.3]} 41. Bf3 {[%clk 0:00:22.1]} 41... Kd6 {[%clk 0:00:02.1]} 42.
Kg3 {[%clk 0:00:22.4]} 42... Ne8 {[%clk 0:00:01.2]} 43. h4 {[%clk 0:00:22.7]}
43... Bh6 {[%clk 0:00:01.2]} 44. Kg4 {[%clk 0:00:22.7]} 44... Ng7 {[%clk
0:00:01.3]} 45. Be4 {[%clk 0:00:23]} 45... Be3 {[%clk 0:00:00.3]} 46. Be1 {[%clk
0:00:22.8]} 46... Bc5 {[%clk 0:00:00.7]} 47. h5 {[%clk 0:00:22.4]} 47... Bd4
{[%clk 0:00:01]} 48. h6 {[%clk 0:00:21.6]} 1-0

[Event "Late-Titled-Tuesday-Blitz-April-30-2024"]
[Site "Chess.com"]
[Date "2024.04.30"]
[Round "2"]
[White "JiiHart"]
[Black "Slovak_fighter2000"]
[Result "0-1"]
[WhiteElo "2161"]
[BlackElo "2470"]
[TimeControl "180+1"]
[EndTime "14:18:53 PDT"]
[Termination "Slovak_fighter2000 won by resignation"]

1. e4 {[%clk 0:03:00.9]} 1... c5 {[%clk 0:03:00.1]} 2. c3 {[%clk 0:03:01.2]}
2... d5 {[%clk 0:03:00.3]} 3. exd5 {[%clk 0:03:01.2]} 3... Nf6 {[%clk
0:03:00.7]} 4. d4 {[%clk 0:03:00.9]} 4... cxd4 {[%clk 0:02:56.6]} 5. c4 {[%clk
0:02:56.2]} 5... e6 {[%clk 0:02:52.1]} 6. Nf3 {[%clk 0:02:42.8]} 6... exd5
{[%clk 0:02:50.8]} 7. cxd5 {[%clk 0:02:40]} 7... Qxd5 {[%clk 0:02:48.3]} 8. Qxd4
{[%clk 0:02:38.5]} 8... Nc6 {[%clk 0:02:44.7]} 9. Qxd5 {[%clk 0:02:34.8]} 9...
Nxd5 {[%clk 0:02:45.6]} 10. a3 {[%clk 0:02:34.5]} 10... Bc5 {[%clk 0:02:42.2]}
11. Bb5 {[%clk 0:02:31]} 11... O-O {[%clk 0:02:34]} 12. O-O {[%clk 0:02:30.8]}
12... Nc7 {[%clk 0:02:29.3]} 13. Bc4 {[%clk 0:02:26.5]} 13... Be6 {[%clk
0:02:24.8]} 14. Nbd2 {[%clk 0:02:23.8]} 14... Rad8 {[%clk 0:02:21.1]} 15. b4
{[%clk 0:02:22.3]} 15... Bb6 {[%clk 0:02:10.5]} 16. Bb2 {[%clk 0:02:21.5]} 16...
Rfe8 {[%clk 0:02:06.5]} 17. Rfd1 {[%clk 0:02:15.9]} 17... h6 {[%clk 0:02:00.6]}
18. h3 {[%clk 0:02:14.9]} 18... a6 {[%clk 0:01:47.2]} 19. Bf1 {[%clk 0:02:11.1]}
19... Nd5 {[%clk 0:01:38.2]} 20. Rac1 {[%clk 0:02:06.1]} 20... Rc8 {[%clk
0:01:25.2]} 21. Nc4 {[%clk 0:02:05.5]} 21... Bc7 {[%clk 0:01:24.9]} 22. Nce5
{[%clk 0:02:04.6]} 22... Nxe5 {[%clk 0:01:22.3]} 23. Nxe5 {[%clk 0:02:04.3]}
23... Bb6 {[%clk 0:01:17.8]} 24. Nc4 {[%clk 0:01:58.5]} 24... Bc7 {[%clk
0:01:16.3]} 25. Be5 {[%clk 0:01:45.8]} 25... Bxe5 {[%clk 0:01:15.1]} 26. Nxe5
{[%clk 0:01:46.2]} 26... Rxc1 {[%clk 0:01:13.9]} 27. Rxc1 {[%clk 0:01:44.9]}
27... Bxh3 {[%clk 0:01:08.8]} 28. Nxf7 {[%clk 0:01:44.9]} 28... Kxf7 {[%clk
0:01:08.9]} 29. gxh3 {[%clk 0:01:44.9]} 29... Nf4 {[%clk 0:01:05.6]} 30. Rc7+
{[%clk 0:01:41.3]} 30... Re7 {[%clk 0:01:05.9]} 31. Rxe7+ {[%clk 0:01:41]} 31...
Kxe7 {[%clk 0:01:06.2]} 32. Kh2 {[%clk 0:01:41.3]} 32... Kf6 {[%clk 0:01:06.2]}
33. Kg3 {[%clk 0:01:41.7]} 33... Ke5 {[%clk 0:01:06.5]} 34. Kf3 {[%clk
0:01:41.3]} 34... g5 {[%clk 0:01:02.4]} 35. Ke3 {[%clk 0:01:41.1]} 35... Nd5+
{[%clk 0:01:00.5]} 36. Kd3 {[%clk 0:01:40.4]} 36... Nf6 {[%clk 0:00:55.4]} 37.
Bg2 {[%clk 0:01:38.2]} 37... b6 {[%clk 0:00:54.5]} 38. Bb7 {[%clk 0:01:32.5]}
38... Nh5 {[%clk 0:00:50.4]} 39. Bc8 {[%clk 0:01:24.9]} 39... Kd5 {[%clk
0:00:42.7]} 40. Kc3 {[%clk 0:01:17.1]} 40... a5 {[%clk 0:00:41.5]} 41. bxa5
{[%clk 0:01:15.7]} 41... bxa5 {[%clk 0:00:41.8]} 42. a4 {[%clk 0:01:16.4]} 42...
Kc5 {[%clk 0:00:41]} 43. Bg4 {[%clk 0:01:12.8]} 43... Nf6 {[%clk 0:00:39.6]} 44.
Bf5 {[%clk 0:01:09.1]} 44... Nd5+ {[%clk 0:00:36]} 45. Kb3 {[%clk 0:01:02.5]}
45... Nb6 {[%clk 0:00:36.9]} 46. Bg6 {[%clk 0:01:00.9]} 46... Kd4 {[%clk
0:00:36.7]} 47. Bh5 {[%clk 0:01:00.1]} 47... Nc4 {[%clk 0:00:36.7]} 48. Bf7
{[%clk 0:00:58.6]} 48... Nd2+ {[%clk 0:00:36.8]} 49. Kc2 {[%clk 0:00:57.8]}
49... Ne4 {[%clk 0:00:37.7]} 50. f3 {[%clk 0:00:56.6]} 50... Nc5 {[%clk
0:00:35.9]} 51. Be8 {[%clk 0:00:55.6]} 51... Kc4 {[%clk 0:00:36.2]} 52. h4
{[%clk 0:00:52.5]} 52... Kb4 {[%clk 0:00:32.7]} 53. hxg5 {[%clk 0:00:52.1]}
53... hxg5 {[%clk 0:00:33.6]} 54. Kd2 {[%clk 0:00:52.1]} 54... Nxa4 {[%clk
0:00:33.6]} 55. Bxa4 {[%clk 0:00:49.4]} 55... Kxa4 {[%clk 0:00:33.7]} 56. Kc3
{[%clk 0:00:50]} 56... Kb5 {[%clk 0:00:32.7]} 57. Kb3 {[%clk 0:00:50.2]} 57...
a4+ {[%clk 0:00:29.9]} 58. Kc3 {[%clk 0:00:50.4]} 58... Kc5 {[%clk 0:00:29.6]}
59. Kd3 {[%clk 0:00:47.1]} 59... Kb4 {[%clk 0:00:30.5]} 60. Ke4 {[%clk
0:00:41.2]} 60... a3 {[%clk 0:00:30.9]} 61. Kf5 {[%clk 0:00:41.9]} 61... a2
{[%clk 0:00:31.8]} 62. Kxg5 {[%clk 0:00:42.5]} 62... a1=Q {[%clk 0:00:32.7]} 63.
f4 {[%clk 0:00:43.2]} 63... Qg7+ {[%clk 0:00:32.8]} 64. Kf5 {[%clk 0:00:39.4]}
64... Qf7+ {[%clk 0:00:33.7]} 65. Ke5 {[%clk 0:00:39.2]} 65... Kc5 {[%clk
0:00:34.6]} 66. f5 {[%clk 0:00:39.2]} 66... Qe7+ {[%clk 0:00:35.1]} 67. Kf4
{[%clk 0:00:38.5]} 67... Qf6 {[%clk 0:00:36]} 0-1

[Event "Late-Titled-Tuesday-Blitz-April-30-2024"]
[Site "Chess.com"]
[Date "2024.04.30"]
[Round "2"]
[White "conformalfunction"]
[Black "Umumba_FM"]
[Result "0-1"]
[WhiteElo "2416"]
[BlackElo "2700"]
[TimeControl "180+1"]
[EndTime "14:18:56 PDT"]
[Termination "Umumba_FM won by checkmate"]

1. e4 {[%clk 0:03:00.1]} 1... e5 {[%clk 0:02:59.6]} 2. Nf3 {[%clk 0:02:57.7]}
2... Nc6 {[%clk 0:02:55.6]} 3. Bb5 {[%clk 0:02:55]} 3... a6 {[%clk 0:02:55.6]}
4. Bxc6 {[%clk 0:02:51.8]} 4... dxc6 {[%clk 0:02:56.5]} 5. O-O {[%clk
0:02:47.6]} 5... Bg4 {[%clk 0:02:55.2]} 6. h3 {[%clk 0:02:43]} 6... h5 {[%clk
0:02:35.9]} 7. d3 {[%clk 0:02:39.8]} 7... Qf6 {[%clk 0:02:26.3]} 8. Nbd2 {[%clk
0:02:38]} 8... Ne7 {[%clk 0:02:19.8]} 9. Re1 {[%clk 0:02:26.9]} 9... Ng6 {[%clk
0:02:15.2]} 10. d4 {[%clk 0:02:19.4]} 10... Bd6 {[%clk 0:02:13.5]} 11. c3 {[%clk
0:02:13.9]} 11... Nf4 {[%clk 0:02:05.3]} 12. h4 {[%clk 0:01:45.5]} 12... O-O-O
{[%clk 0:01:59.4]} 13. Nf1 {[%clk 0:01:40.3]} 13... Nh3+ {[%clk 0:01:48.2]} 14.
gxh3 {[%clk 0:01:22.4]} 14... Bxf3 {[%clk 0:01:47.7]} 15. Qd3 {[%clk 0:01:23.1]}
15... exd4 {[%clk 0:01:42.6]} 16. e5 {[%clk 0:01:24]} 16... Bxe5 {[%clk
0:01:28.8]} 17. Bg5 {[%clk 0:01:24.5]} 17... Qd6 {[%clk 0:01:06.3]} 18. Qxf3
{[%clk 0:01:19.3]} 18... f6 {[%clk 0:01:06.5]} 19. Rad1 {[%clk 0:01:05.7]} 19...
Kb8 {[%clk 0:00:58.3]} 20. cxd4 {[%clk 0:01:02.7]} 20... Bxd4 {[%clk 0:00:59]}
21. Bf4 {[%clk 0:01:01.2]} 21... Qb4 {[%clk 0:00:55.3]} 22. b3 {[%clk
0:00:56.7]} 22... Bb6 {[%clk 0:00:54.2]} 23. Be3 {[%clk 0:00:56.1]} 23... Qxh4
{[%clk 0:00:49.4]} 24. Bxb6 {[%clk 0:00:55.4]} 24... cxb6 {[%clk 0:00:50.3]} 25.
Qg3+ {[%clk 0:00:55.5]} 25... Qxg3+ {[%clk 0:00:50.8]} 26. fxg3 {[%clk
0:00:55.6]} 26... Rxd1 {[%clk 0:00:49.2]} 27. Rxd1 {[%clk 0:00:56.5]} 27... Kc7
{[%clk 0:00:49.8]} 28. Kf2 {[%clk 0:00:56.4]} 28... Re8 {[%clk 0:00:49.2]} 29.
Ne3 {[%clk 0:00:56.4]} 29... g6 {[%clk 0:00:48.9]} 30. Kf3 {[%clk 0:00:56]}
30... b5 {[%clk 0:00:47.3]} 31. b4 {[%clk 0:00:50.5]} 31... b6 {[%clk
0:00:46.8]} 32. Rd4 {[%clk 0:00:41.8]} 32... a5 {[%clk 0:00:46.9]} 33. a3 {[%clk
0:00:40.2]} 33... axb4 {[%clk 0:00:46.5]} 34. axb4 {[%clk 0:00:41.1]} 34... Ra8
{[%clk 0:00:46]} 35. Re4 {[%clk 0:00:37.8]} 35... Kd6 {[%clk 0:00:44.5]} 36.
Rd4+ {[%clk 0:00:35.8]} 36... Ke6 {[%clk 0:00:45]} 37. Rd3 {[%clk 0:00:27.2]}
37... c5 {[%clk 0:00:42.4]} 38. Nd5 {[%clk 0:00:20.6]} 38... Ra4 {[%clk
0:00:40.3]} 39. bxc5 {[%clk 0:00:18]} 39... bxc5 {[%clk 0:00:39.5]} 40. Nc7+
{[%clk 0:00:18.6]} 40... Ke5 {[%clk 0:00:39.2]} 41. Nxb5 {[%clk 0:00:19.5]}
41... g5 {[%clk 0:00:36.6]} 42. Ke3 {[%clk 0:00:15.7]} 42... f5 {[%clk
0:00:35.2]} 43. Rc3 {[%clk 0:00:13.7]} 43... c4 {[%clk 0:00:26.1]} 44. Na3
{[%clk 0:00:11]} 44... Kd5 {[%clk 0:00:26.5]} 45. h4 {[%clk 0:00:10.3]} 45...
f4+ {[%clk 0:00:25.8]} 46. gxf4 {[%clk 0:00:09.9]} 46... gxh4 {[%clk 0:00:26.3]}
47. Nc2 {[%clk 0:00:05.5]} 47... Ra8 {[%clk 0:00:24.3]} 48. Ne1 {[%clk
0:00:05.8]} 48... Re8+ {[%clk 0:00:23.8]} 49. Kf2 {[%clk 0:00:04.8]} 49... Kd4
{[%clk 0:00:24.7]} 50. Rc2 {[%clk 0:00:04.3]} 50... c3 {[%clk 0:00:24.1]} 51.
Nf3+ {[%clk 0:00:02.9]} 51... Kd3 {[%clk 0:00:24.6]} 52. Rc1 {[%clk 0:00:03.8]}
52... c2 {[%clk 0:00:25]} 53. Rh1 {[%clk 0:00:04.2]} 53... Re2+ {[%clk
0:00:24.3]} 54. Kf1 {[%clk 0:00:04]} 54... Ke3 {[%clk 0:00:23]} 55. Nd4 {[%clk
0:00:01.3]} 55... c1=Q# {[%clk 0:00:20.8]} 0-1

[Event "Late-Titled-Tuesday-Blitz-April-30-2024"]
[Site "Chess.com"]
[Date "2024.04.30"]
[Round "2"]
[White "AlexeiShirov"]
[Black "lucasran"]
[Result "1-0"]
[WhiteElo "2814"]
[BlackElo "2554"]
[TimeControl "180+1"]
[EndTime "14:18:58 PDT"]
[Termination "AlexeiShirov won by resignation"]

1. e4 {[%clk 0:03:00.9]} 1... c6 {[%clk 0:02:59.9]} 2. d4 {[%clk 0:02:59.7]}
2... d5 {[%clk 0:03:00.8]} 3. e5 {[%clk 0:03:00.1]} 3... Bf5 {[%clk 0:03:00.8]}
4. h4 {[%clk 0:03:00]} 4... h5 {[%clk 0:03:01.3]} 5. Bd3 {[%clk 0:02:59.7]} 5...
Bxd3 {[%clk 0:03:00.9]} 6. Qxd3 {[%clk 0:02:59.5]} 6... Qa5+ {[%clk 0:02:58.5]}
7. Nd2 {[%clk 0:02:58.3]} 7... Qa6 {[%clk 0:02:58.9]} 8. e6 {[%clk 0:02:55.8]}
8... Qxd3 {[%clk 0:02:59.2]} 9. exf7+ {[%clk 0:02:55.2]} 9... Kxf7 {[%clk
0:03:00.1]} 10. cxd3 {[%clk 0:02:54.9]} 10... Nd7 {[%clk 0:03:00.3]} 11. Ndf3
{[%clk 0:02:51]} 11... g6 {[%clk 0:02:48]} 12. Ng5+ {[%clk 0:02:45]} 12... Kf6
{[%clk 0:02:30.1]} 13. Rh3 {[%clk 0:02:41.9]} 13... Nh6 {[%clk 0:02:25]} 14. Re3
{[%clk 0:02:35.8]} 14... Nf5 {[%clk 0:02:22.5]} 15. Re6+ {[%clk 0:02:31.9]}
15... Kg7 {[%clk 0:02:22.9]} 16. N1f3 {[%clk 0:02:27.6]} 16... Rg8 {[%clk
0:01:42.8]} 17. Bf4 {[%clk 0:02:17.6]} 17... Kh8 {[%clk 0:01:25.4]} 18. Kd2
{[%clk 0:02:16.6]} 18... Re8 {[%clk 0:01:00.9]} 19. Rae1 {[%clk 0:02:09.8]}
19... Kg7 {[%clk 0:00:44.5]} 20. Be5+ {[%clk 0:01:52.8]} 20... Nxe5 {[%clk
0:00:33.2]} 21. Nxe5 {[%clk 0:01:51.9]} 21... Kh6 {[%clk 0:00:16.8]} 22. Ngf3
{[%clk 0:01:43.7]} 22... Kh7 {[%clk 0:00:11.3]} 23. g4 {[%clk 0:01:35.1]} 23...
hxg4 {[%clk 0:00:08]} 24. Nxg4 {[%clk 0:01:15.2]} 24... Bh6+ {[%clk 0:00:08.1]}
25. Kc3 {[%clk 0:01:02.5]} 25... Bf4 {[%clk 0:00:08.7]} 26. Nf6+ {[%clk
0:00:59.6]} 26... exf6 {[%clk 0:00:07.6]} 27. Rxe8 {[%clk 0:00:59.4]} 27... Rg7
{[%clk 0:00:08.2]} 28. Ra8 {[%clk 0:00:55.8]} 28... a6 {[%clk 0:00:07.8]} 29.
Ree8 {[%clk 0:00:54.6]} 29... Rd7 {[%clk 0:00:07.6]} 30. Rh8+ {[%clk 0:00:52.2]}
30... Kg7 {[%clk 0:00:08.2]} 31. Rag8+ {[%clk 0:00:51.8]} 31... Kf7 {[%clk
0:00:09.1]} 32. Rh7+ {[%clk 0:00:51.4]} 32... Ke6 {[%clk 0:00:09.2]} 33. Rxd7
{[%clk 0:00:49.7]} 33... Kxd7 {[%clk 0:00:09.6]} 34. Rxg6 {[%clk 0:00:48.9]}
34... Ke6 {[%clk 0:00:09.9]} 35. Rg8 {[%clk 0:00:44.5]} 35... Kf7 {[%clk
0:00:08.2]} 36. Rd8 {[%clk 0:00:42.2]} 36... Kg6 {[%clk 0:00:07.8]} 37. Rd7
{[%clk 0:00:40]} 37... b6 {[%clk 0:00:07]} 38. Rb7 {[%clk 0:00:36.6]} 38... b5
{[%clk 0:00:03.1]} 39. Rb6 {[%clk 0:00:36.4]} 39... Ne7 {[%clk 0:00:03.4]} 40.
Rxa6 {[%clk 0:00:35.9]} 40... Kh5 {[%clk 0:00:04.2]} 41. Ne1 {[%clk 0:00:30.5]}
41... Kxh4 {[%clk 0:00:03.7]} 42. Ng2+ {[%clk 0:00:29.7]} 42... Kg4 {[%clk
0:00:04.5]} 43. Nxf4 {[%clk 0:00:29.5]} 43... Kxf4 {[%clk 0:00:05.4]} 44. Kb4
{[%clk 0:00:28.7]} 44... Kf5 {[%clk 0:00:06]} 45. Kc5 {[%clk 0:00:28.7]} 45...
Ke6 {[%clk 0:00:06.7]} 46. b3 {[%clk 0:00:27.9]} 46... Kd7 {[%clk 0:00:06.8]}
47. a4 {[%clk 0:00:27.6]} 47... bxa4 {[%clk 0:00:07.5]} 48. bxa4 {[%clk
0:00:26.8]} 48... Kc7 {[%clk 0:00:01.4]} 49. Ra7+ {[%clk 0:00:26.3]} 49... Kd8
{[%clk 0:00:02.2]} 50. a5 {[%clk 0:00:26.3]} 50... Nc8 {[%clk 0:00:02.4]} 51.
Rh7 {[%clk 0:00:25.9]} 1-0

[Event "Late-Titled-Tuesday-Blitz-April-30-2024"]
[Site "Chess.com"]
[Date "2024.04.30"]
[Round "2"]
[White "Sanyura"]
[Black "laskakid"]
[Result "1-0"]
[WhiteElo "2663"]
[BlackElo "2395"]
[TimeControl "180+1"]
[EndTime "14:18:58 PDT"]
[Termination "Sanyura won on time"]

1. d4 {[%clk 0:03:00.9]} 1... f5 {[%clk 0:02:58.8]} 2. c4 {[%clk 0:03:00.5]}
2... Nf6 {[%clk 0:02:58.7]} 3. Nc3 {[%clk 0:03:01.1]} 3... d6 {[%clk 0:02:57.7]}
4. Bg5 {[%clk 0:03:00.9]} 4... Nbd7 {[%clk 0:02:57.3]} 5. Nf3 {[%clk 0:03:01]}
5... g6 {[%clk 0:02:57.1]} 6. g3 {[%clk 0:03:01.1]} 6... Bg7 {[%clk 0:02:57.1]}
7. Bg2 {[%clk 0:03:01.5]} 7... O-O {[%clk 0:02:57.3]} 8. O-O {[%clk 0:03:01.6]}
8... h6 {[%clk 0:02:56.5]} 9. Bxf6 {[%clk 0:02:58.2]} 9... Nxf6 {[%clk
0:02:55.9]} 10. d5 {[%clk 0:02:58.3]} 10... Bd7 {[%clk 0:02:43.1]} 11. Nd4
{[%clk 0:02:57.1]} 11... Qe8 {[%clk 0:02:39.4]} 12. b4 {[%clk 0:02:54.6]} 12...
c6 {[%clk 0:02:36.4]} 13. dxc6 {[%clk 0:02:54]} 13... bxc6 {[%clk 0:02:36.2]}
14. Qd3 {[%clk 0:02:49.3]} 14... e5 {[%clk 0:02:28.6]} 15. Nb3 {[%clk
0:02:48.4]} 15... Qe7 {[%clk 0:02:17.3]} 16. Rad1 {[%clk 0:02:46.7]} 16... Rab8
{[%clk 0:01:59.3]} 17. a3 {[%clk 0:02:31.6]} 17... Qf7 {[%clk 0:01:48.1]} 18.
Na5 {[%clk 0:02:25.2]} 18... d5 {[%clk 0:01:42.8]} 19. cxd5 {[%clk 0:02:23]}
19... e4 {[%clk 0:01:43.2]} 20. Qd2 {[%clk 0:02:13.9]} 20... cxd5 {[%clk
0:01:42.1]} 21. Nxd5 {[%clk 0:02:14.8]} 21... Ba4 {[%clk 0:01:38.9]} 22. Nxf6+
{[%clk 0:02:13.3]} 22... Bxf6 {[%clk 0:01:39.2]} 23. Rc1 {[%clk 0:02:10.7]}
23... Bg5 {[%clk 0:01:34.6]} 24. e3 {[%clk 0:02:10.6]} 24... Rfd8 {[%clk
0:01:33.5]} 25. Qc3 {[%clk 0:02:06.6]} 25... Rd3 {[%clk 0:01:24.2]} 26. Qe5
{[%clk 0:02:04.4]} 26... Re8 {[%clk 0:01:18.1]} 27. Qc5 {[%clk 0:01:59.1]} 27...
Rxa3 {[%clk 0:01:06.4]} 28. Nc4 {[%clk 0:01:57.2]} 28... Ra2 {[%clk 0:01:02.3]}
29. Nd6 {[%clk 0:01:56.5]} 29... Be7 {[%clk 0:00:54.1]} 30. Qc7 {[%clk
0:01:32.4]} 30... Bxd6 {[%clk 0:00:50.1]} 31. Qxd6 {[%clk 0:01:33.3]} 31... Bc2
{[%clk 0:00:34.1]} 32. Ra1 {[%clk 0:01:28.4]} 32... Bd3 {[%clk 0:00:27.9]} 33.
Rxa2 {[%clk 0:01:10.4]} 33... Bxf1 {[%clk 0:00:27.5]} 34. Bxf1 {[%clk
0:00:56.7]} 34... Qxa2 {[%clk 0:00:26.4]} 35. Qxg6+ {[%clk 0:00:56.2]} 35... Kf8
{[%clk 0:00:26.2]} 36. Qxh6+ {[%clk 0:00:49.9]} 36... Ke7 {[%clk 0:00:21.8]} 37.
Qg5+ {[%clk 0:00:46.6]} 37... Kd6 {[%clk 0:00:19]} 38. Qxf5 {[%clk 0:00:44.6]}
38... Qb1 {[%clk 0:00:15.3]} 39. Qc5+ {[%clk 0:00:42]} 39... Kd7 {[%clk
0:00:15]} 40. Qxa7+ {[%clk 0:00:41.6]} 40... Ke6 {[%clk 0:00:14.4]} 41. Qd4
{[%clk 0:00:37.7]} 41... Rc8 {[%clk 0:00:12.7]} 42. Kg2 {[%clk 0:00:34.3]} 42...
Rc1 {[%clk 0:00:09.4]} 43. Bc4+ {[%clk 0:00:33.8]} 43... Kf5 {[%clk 0:00:08.1]}
44. Qd5+ {[%clk 0:00:31.1]} 44... Kf6 {[%clk 0:00:07.8]} 45. Qe6+ {[%clk
0:00:30.1]} 45... Kg7 {[%clk 0:00:07]} 46. Kh3 {[%clk 0:00:10.4]} 46... Rg1
{[%clk 0:00:02.5]} 47. Bd5 {[%clk 0:00:08.9]} 47... Qf1+ {[%clk 0:00:01.5]} 48.
Kh4 {[%clk 0:00:09.3]} 48... Qg2 {[%clk 0:00:01]} 49. Qf7+ {[%clk 0:00:07.6]}
1-0